fUST/lending_fUST_20241111
["ID","MTS","AMOUNT","RATE_DAILY","PERIOD"]
[341882458,1731265845935,-500.0,0.00025753,2]
[341882459,1731265845946,-299.999008,0.00025753,7]
[341882460,1731265845955,-323.2189,0.00025753,7]
[341882461,1731265845964,-323.2189,0.00025753,7]
[341882462,1731265845974,-500.0,0.00025753,2]
[341882463,1731265845983,-500.0,0.00025753,2]
[341882464,1731265845993,-1489.28,0.00025753,2]
[341882465,1731265846003,-500.0,0.00025753,2]
[341882466,1731265846013,-151.0,0.00025753,7]
[341882467,1731265846024,-249.989383,0.00025753,7]
[341882468,1731265846035,-316.66,0.00025753,2]
[341882470,1731265846045,-249.989383,0.00025753,7]
[341882472,1731265846056,-500.0,0.00025753,2]
[341882474,1731265846065,-500.0,0.00025753,2]
[341882475,1731265846075,-500.0,0.00025753,2]
[341882476,1731265846085,-440.60899483,0.00025753,2]
[341882477,1731265846095,-500.0,0.00025753,2]
[341882478,1731265846105,-807.03,0.00025753,2]
[341882480,1731265846114,-977.78,0.00025753,2]
[341882482,1731265846124,-500.0,0.00025753,2]
[341882483,1731265846134,-500.0,0.00025753,2]
[341882484,1731265846144,-359.799512,0.00025753,7]
[341882485,1731265846154,-500.0,0.00025753,2]
[341882486,1731265846164,-359.799512,0.00025753,7]
[341882487,1731265846173,-151.0,0.00025753,7]
[341882488,1731265846183,-506.55,0.00025753,2]
[341882490,1731265846194,-500.0,0.00025753,2]
[341882492,1731265846204,-500.0,0.00025753,2]
[341882493,1731265846213,-1273.93,0.00025753,2]
[341882495,1731265846223,-500.0,0.00025753,2]
[341882497,1731265846233,-500.0,0.00025753,2]
[341882498,1731265846243,-2567.11,0.00025753,2]
[341882499,1731265846252,-500.0,0.00025753,2]
[341882500,1731265846261,-569.34685226,0.00025753,2]
[341882501,1731265846270,-500.0,0.00025753,2]
[341882502,1731265846283,-215.843465,0.00025753,7]
[341882504,1731265846293,-215.843465,0.00025753,7]
[341882506,1731265846303,-977.17,0.00025753,2]
[341882507,1731265846313,-544.43641432,0.00025753,2]
[341882509,1731265846322,-500.0,0.00025753,2]
[341882511,1731265846331,-500.0,0.00025753,2]
[341882513,1731265846341,-2504.22,0.00025753,2]
[341882514,1731265846351,-500.0,0.00025753,2]
[341882515,1731265846360,-955.57,0.00025753,2]
[341882516,1731265846369,-540.58,0.00025753,2]
[341882517,1731265846378,-500.0,0.00025753,2]
[341882518,1731265846386,-553.76,0.00025753,2]
[341882519,1731265846395,-500.0,0.00025753,2]
[341882520,1731265846404,-631.47,0.00025753,2]
[341882521,1731265846414,-1219.26,0.00025753,2]
[341882522,1731265846425,-3362.96,0.00025753,2]
[341882523,1731265846434,-1292.39,0.00025753,2]
[341882524,1731265846444,-500.0,0.00025753,2]
[341882525,1731265846453,-902.38,0.00025753,2]
[341882526,1731265846463,-500.0,0.00025753,2]
[341882527,1731265846473,-261.106327,0.00025753,7]
[341882528,1731265846483,-261.106327,0.00025753,7]
[341882529,1731265846493,-500.0,0.00025753,2]
[341882530,1731265846503,-573.32,0.00025753,2]
[341882531,1731265846514,-4064.15,0.00025753,2]
[341882532,1731265846524,-500.0,0.00025753,2]
[341882533,1731265846536,-500.0,0.00025753,2]
[341882534,1731265846546,-500.0,0.00025753,2]
[341882535,1731265846556,-5741.44,0.00025753,2]
[341882536,1731265846566,-588.45,0.00025753,2]
[341882537,1731265846576,-853.21,0.00025753,2]
[341882538,1731265846587,-13269.49,0.00025753,2]
[341882539,1731265846596,-544.38,0.00025753,2]
[341882540,1731265846606,-637.25,0.00025753,2]
[341882541,1731265846616,-1288.67,0.00025753,2]
[341882542,1731265846626,-921.43,0.00025753,2]
[341882543,1731265846636,-468.0,0.00025753,2]
[341882544,1731265846645,-81922.09735552,0.00025767,2]
[341882545,1731265846655,-155926.19356958,0.00025767,2]
[341882546,1731265846858,-500.0,0.00025205,2]
[341882547,1731265846868,-500.0,0.00025479,2]
[341882548,1731265846877,-500.0,0.00025753,2]
[341882549,1731265846888,-18056.50663629,0.00025767,2]
[341882550,1731265846897,-151.0,0.00025767,7]
[341882551,1731265846907,-151.0,0.00025767,7]
[341882552,1731265846917,-151.0,0.00025767,7]
[341882553,1731265846926,-151.0,0.00025767,7]
[341882554,1731265846936,-500.0,0.00025773,2]
[341882555,1731265846946,-500.0,0.00025773,2]
[341882556,1731265846955,-500.0,0.00025773,2]
[341882557,1731265846964,-500.0,0.00025773,2]
[341882558,1731265846974,-493.90630599,0.00025773,2]
[341882559,1731265846983,-500.0,0.00025773,2]
[341882560,1731265846992,-449.77855225,0.00025773,2]
[341882561,1731265847002,-205.06177153,0.00025773,2]
[341882562,1731265847011,-500.0,0.00025773,2]
[341882563,1731265847020,-500.0,0.00025773,2]
[341882564,1731265847032,-500.0,0.00025773,2]
[341882565,1731265847042,-151.0,0.00025773,7]
[341882566,1731265847051,-151.0,0.00025773,7]
[341882567,1731265847061,-820.850837,0.00025773,7]
[341882568,1731265847071,-820.850837,0.00025773,7]
[341882569,1731265847080,-462.064509,0.00025773,7]
[341882570,1731265847090,-462.064509,0.00025773,7]
[341882571,1731265847100,-151.0,0.00025773,7]
[341882572,1731265847110,-789.833325,0.00025773,7]
[341882573,1731265847119,-246.23009,0.00025773,7]
[341882574,1731265847129,-151.0,0.00025773,7]
[341882575,1731265847138,-246.23009,0.00025773,7]
[341882576,1731265847148,-789.833325,0.00025773,7]
[341882577,1731265847157,-1861.549979,0.00025773,7]
[341882578,1731265847167,-1861.549979,0.00025773,7]
[341882579,1731265847176,-151.0,0.00025773,7]
[341882580,1731265847185,-543.419579,0.00025773,7]
[341882581,1731265847195,-543.419579,0.00025773,7]
[341882582,1731265847204,-1693.724242,0.00025773,7]
[341882583,1731265847214,-151.0,0.00025773,7]
[341882584,1731265847223,-1693.724242,0.00025773,7]
[341882585,1731265847232,-151.0,0.00025773,7]
[341882586,1731265847242,-151.0,0.00025773,7]
[341882587,1731265847251,-150.112233,0.000258,18]
[341882588,1731265847260,-359.799512,0.000258,7]
[341882589,1731265847270,-359.799512,0.000258,7]
[341882590,1731265847280,-151.0,0.000258,7]
[341882591,1731265847290,-215.843465,0.000258,7]
[341882592,1731265847299,-215.843465,0.000258,7]
[341882593,1731265847308,-261.106327,0.000258,7]
[341882594,1731265847317,-261.106327,0.000258,7]
[341882595,1731265847327,-468.0,0.0002589,2]
[341882596,1731265847336,-198.0,0.0002589,2]
[341882597,1731265847345,-150.112233,0.000259,14]
[341882598,1731265847354,-303.09092121,0.00025921,2]
[341882599,1731265847363,-1022.55254768,0.00025927,2]
[341882600,1731265847372,-195.67433294,0.00025959,11]
[341882601,1731265847381,-183.88,0.00025959,11]
[341882602,1731265847390,-151.0,0.00026026,7]
[341882603,1731265847400,-921.060595,0.00026026,7]
[341882604,1731265847409,-921.060595,0.00026026,7]
[341882605,1731265847418,-152.755083,0.00026026,7]
[341882606,1731265847428,-151.0,0.00026026,7]
[341882607,1731265847438,-2458.636849,0.00026026,7]
[341882608,1731265847447,-2458.636849,0.00026026,7]
[341882609,1731265847456,-305.14622,0.00026026,2]
[341882610,1731265847466,-305.14622,0.00026026,2]
[341882611,1731265847475,-258.350747,0.00026027,7]
[341882612,1731265847484,-258.350747,0.00026027,7]
[341882613,1731265847494,-151.0,0.00026027,7]
[341882614,1731265847504,-151.0,0.00026027,7]
[341882615,1731265847514,-151.0,0.00026027,7]
[341882616,1731265847523,-151.0,0.00026027,7]
[341882617,1731265847533,-151.0,0.00026027,7]
[341882618,1731265847542,-284.311864,0.00026027,7]
[341882619,1731265847551,-284.311864,0.00026027,7]
[341882620,1731265847561,-505.214701,0.00026027,7]
[341882621,1731265847571,-505.214701,0.00026027,7]
[341882622,1731265847580,-212.654744,0.00026027,7]
[341882623,1731265847589,-212.654744,0.00026027,7]
[341882624,1731265847598,-432.80712029,0.00026027,2]
[341882625,1731265847607,-500.0,0.00026027,2]
[341882626,1731265847617,-500.0,0.00026027,2]
[341882627,1731265847627,-500.0,0.00026027,2]
[341882628,1731265847636,-151.0,0.00026027,7]
[341882629,1731265847646,-151.0,0.00026027,7]
[341882630,1731265847656,-151.0,0.00026027,7]
[341882631,1731265847665,-500.0,0.00026027,2]
[341882632,1731265847675,-918.881644,0.00026027,7]
[341882633,1731265847684,-918.881644,0.00026027,7]
[341882634,1731265847693,-151.0,0.00026027,7]
[341882635,1731265847701,-255.409528,0.00026027,7]
[341882636,1731265847710,-208.865042,0.00026027,7]
[341882637,1731265847720,-208.865042,0.00026027,7]
[341882638,1731265847732,-263.774245,0.00026027,3]
[341882639,1731265847741,-500.0,0.00026027,2]
[341882640,1731265847751,-500.0,0.00026027,2]
[341882641,1731265847760,-575.41,0.00026027,2]
[341882642,1731265847771,-500.0,0.00026027,2]
[341882643,1731265847781,-359.29677597,0.00026027,2]
[341882644,1731265847790,-500.0,0.00026027,2]
[341882645,1731265847801,-151.0,0.00026027,7]
[341882646,1731265847810,-151.0,0.00026027,7]
[341882647,1731265847819,-216.659519,0.00026027,7]
[341882648,1731265847935,-500.0,0.00026027,2]
[341882649,1731265847945,-216.659519,0.00026027,7]
[341882650,1731265847955,-2224.637435,0.00026027,7]
[341882651,1731265847965,-500.0,0.00026027,2]
[341882652,1731265847975,-375.369755,0.00026027,7]
[341882653,1731265847984,-375.369755,0.00026027,7]
[341882654,1731265847994,-845.13,0.00026027,2]
[341882655,1731265848003,-500.0,0.00026027,2]
[341882656,1731265848013,-500.0,0.00026027,2]
[341882657,1731265848022,-500.0,0.00026027,2]
[341882658,1731265848033,-500.0,0.00026027,2]
[341882659,1731265848042,-564.96791943,0.00026027,2]
[341882660,1731265848052,-1731.01,0.00026027,2]
[341882661,1731265848062,-500.0,0.00026027,2]
[341882662,1731265848071,-500.0,0.00026027,2]
[341882663,1731265848081,-500.0,0.00026027,2]
[341882664,1731265848090,-832.9,0.00026027,2]
[341882665,1731265848100,-607.705642,0.00026027,7]
[341882666,1731265848110,-607.705642,0.00026027,7]
[341882667,1731265848119,-998.14,0.00026027,2]
[341882668,1731265848129,-151.0,0.00026027,7]
[341882669,1731265848138,-2001.43,0.00026027,2]
[341882670,1731265848147,-151.0,0.00026027,7]
[341882671,1731265848157,-500.0,0.00026027,2]
[341882672,1731265848166,-299.999008,0.00026027,7]
[341882673,1731265848176,-500.0,0.00026027,2]
[341882674,1731265848185,-299.999008,0.00026027,7]
[341882675,1731265848194,-323.2189,0.00026027,7]
[341882676,1731265848203,-323.2189,0.00026027,7]
[341882677,1731265848212,-500.0,0.00026027,2]
[341882678,1731265848222,-500.0,0.00026027,2]
[341882679,1731265848231,-1489.28,0.00026027,2]
[341882680,1731265848241,-500.0,0.00026027,2]
[341882681,1731265848250,-151.0,0.00026027,7]
[341882682,1731265848260,-249.989383,0.00026027,7]
[341882683,1731265848270,-249.989383,0.00026027,7]
[341882684,1731265848281,-500.0,0.00026027,2]
[341882685,1731265848290,-543.42594254,0.00026027,2]
[341882686,1731265848299,-500.0,0.00026027,2]
[341882687,1731265848309,-500.0,0.00026027,2]
[341882688,1731265848319,-807.03,0.00026027,2]
[341882689,1731265848328,-977.78,0.00026027,2]
[341882690,1731265848338,-246.56,0.00026027,2]
[341882691,1731265848347,-500.0,0.00026027,2]
[341882692,1731265848357,-500.0,0.00026027,2]
[341882693,1731265848367,-506.55,0.00026027,2]
[341882694,1731265848376,-500.0,0.00026027,2]
[341882695,1731265848385,-500.0,0.00026027,2]
[341882696,1731265848394,-1273.93,0.00026027,2]
[341882697,1731265848404,-500.0,0.00026027,2]
[341882698,1731265848413,-500.0,0.00026027,2]
[341882699,1731265848423,-2567.11,0.00026027,2]
[341882700,1731265848432,-500.0,0.00026027,2]
[341882701,1731265848441,-500.0,0.00026027,2]
[341882702,1731265848451,-977.17,0.00026027,2]
[341882703,1731265848461,-500.0,0.00026027,2]
[341882704,1731265848471,-181.87836537,0.00026027,2]
[341882705,1731265848481,-2504.22,0.00026027,2]
[341882706,1731265848490,-500.0,0.00026027,2]
[341882707,1731265848499,-955.57,0.00026027,2]
[341882708,1731265848509,-500.0,0.00026027,2]
[341882709,1731265848518,-553.76,0.00026027,2]
[341882710,1731265848527,-500.0,0.00026027,2]
[341882711,1731265848539,-631.47,0.00026027,2]
[341882712,1731265848548,-1219.26,0.00026027,2]
[341882713,1731265848558,-3362.96,0.00026027,2]
[341882714,1731265848568,-1292.39,0.00026027,2]
[341882715,1731265848577,-500.0,0.00026027,2]
[341882716,1731265848587,-902.38,0.00026027,2]
[341882717,1731265848596,-500.0,0.00026027,2]
[341882718,1731265848606,-500.0,0.00026027,2]
[341882719,1731265848615,-573.32,0.00026027,2]
[341882720,1731265848625,-4064.15,0.00026027,2]
[341882721,1731265848634,-498.1497,0.00026027,2]
[341882722,1731265848644,-500.0,0.00026027,2]
[341882723,1731265848653,-500.0,0.00026027,2]
[341882724,1731265848663,-5741.44,0.00026027,2]
[341882725,1731265848672,-588.45,0.00026027,2]
[341882726,1731265848681,-853.21,0.00026027,2]
[341882727,1731265848692,-13269.49,0.00026027,2]
[341882728,1731265848701,-544.38,0.00026027,2]
[341882729,1731265848710,-637.25,0.00026027,2]
[341882730,1731265848720,-1288.67,0.00026027,2]
[341882731,1731265848733,-921.43,0.00026027,2]
[341882732,1731265848742,-500.0,0.00026027,2]
[341882733,1731265848752,-458.69343464,0.00026042,2]
[341882734,1731265848763,-1000.0,0.00026042,2]
[341882735,1731265848772,-587.64392515,0.00026042,2]
[341882736,1731265849049,-350.86874935,0.00026046,2]
[341882737,1731265849058,-3697.78857172,0.00026154,4]
[341882738,1731265849070,-5240.21142828,0.00026154,4]
[341882739,1731265849080,-1766.72710344,0.00026171,2]
[341882740,1731265849090,-303.09092121,0.00026175,2]
[341882741,1731265849099,-1210.47,0.000263,14]
[341882742,1731265849109,-284.311864,0.00026301,7]
[341882743,1731265849118,-284.311864,0.00026301,7]
[341882744,1731265849128,-505.214701,0.00026301,7]
[341882745,1731265849137,-44.64209357,0.00026301,7]
[341882746,1731265849149,-460.57260743,0.00026301,7]
[341882747,1731265849158,-212.654744,0.00026301,7]
[341882748,1731265849168,-212.654744,0.00026301,7]
[341882749,1731265849177,-240.73742849,0.00026301,2]
[341882750,1731265849187,-500.0,0.00026301,2]
[341882751,1731265849196,-151.0,0.00026301,7]
[341882752,1731265849206,-221.482255,0.00026301,7]
[341882753,1731265849215,-805.035628,0.00026301,7]
[341882754,1731265849225,-805.035628,0.00026301,7]
[341882755,1731265849234,-500.0,0.00026301,2]
[341882756,1731265849244,-500.0,0.00026301,2]
[341882757,1731265849253,-151.0,0.00026301,7]
[341882758,1731265849262,-404.17702633,0.00026301,2]
[341882759,1731265849298,-95.82297367,0.00026301,2]
[341882760,1731265849308,-500.0,0.00026301,2]
[341882761,1731265849317,-575.41,0.00026301,2]
[341882762,1731265849326,-500.0,0.00026301,2]
[341882763,1731265849336,-500.0,0.00026301,2]
[341882764,1731265849345,-500.0,0.00026301,2]
[341882765,1731265849354,-500.0,0.00026301,2]
[341882766,1731265849364,-845.13,0.00026301,2]
[341882767,1731265849373,-500.0,0.00026301,2]
[341882768,1731265849383,-500.0,0.00026301,2]
[341882769,1731265849392,-500.0,0.00026301,2]
[341882770,1731265849402,-1731.01,0.00026301,2]
[341882771,1731265849412,-500.0,0.00026301,2]
[341882772,1731265849422,-500.0,0.00026301,2]
[341882773,1731265849432,-500.0,0.00026301,2]
[341882774,1731265849442,-832.9,0.00026301,2]
[341882775,1731265849451,-151.0,0.00026301,7]
[341882776,1731265849460,-998.14,0.00026301,2]
[341882777,1731265849469,-921.060595,0.00026301,7]
[341882778,1731265849479,-921.060595,0.00026301,7]
[341882779,1731265849488,-2001.43,0.00026301,2]
[341882780,1731265849497,-500.0,0.00026301,2]
[341882781,1731265849506,-151.0,0.00026301,7]
[341882782,1731265849515,-500.0,0.00026301,2]
[341882783,1731265849524,-500.0,0.00026301,2]
[341882784,1731265849535,-2458.636849,0.00026301,7]
[341882785,1731265849544,-500.0,0.00026301,2]
[341882786,1731265849553,-2458.636849,0.00026301,7]
[341882787,1731265849563,-1489.28,0.00026301,2]
[341882788,1731265849573,-500.0,0.00026301,2]
[341882789,1731265849582,-151.0,0.00026301,7]
[341882790,1731265849591,-249.989383,0.00026301,7]
[341882791,1731265849601,-249.989383,0.00026301,7]
[341882792,1731265849611,-500.0,0.00026301,2]
[341882793,1731265849620,-500.0,0.00026301,2]
[341882794,1731265849630,-151.0,0.00026301,7]
[341882795,1731265849640,-500.0,0.00026301,2]
[341882796,1731265849649,-305.14622,0.00026301,2]
[341882797,1731265849659,-305.14622,0.00026301,2]
[341882798,1731265849668,-807.03,0.00026301,2]
[341882799,1731265849677,-151.0,0.00026301,7]
[341882801,1731265849689,-977.78,0.00026301,2]
[341882802,1731265849698,-500.0,0.00026301,2]
[341882804,1731265849708,-820.850837,0.00026301,7]
[341882805,1731265849718,-820.850837,0.00026301,7]
[341882806,1731265849732,-359.799512,0.00026301,7]
[341882807,1731265849742,-500.0,0.00026301,2]
[341882809,1731265849752,-359.799512,0.00026301,7]
[341882810,1731265849762,-151.0,0.00026301,7]
[341882811,1731265849773,-506.55,0.00026301,2]
[341882812,1731265849782,-500.0,0.00026301,2]
[341882813,1731265849792,-500.0,0.00026301,2]
[341882814,1731265849802,-1273.93,0.00026301,2]
[341882815,1731265849811,-500.0,0.00026301,2]
[341882816,1731265849820,-500.0,0.00026301,2]
[341882817,1731265849829,-2567.11,0.00026301,2]
[341882818,1731265849839,-500.0,0.00026301,2]
[341882819,1731265849848,-500.0,0.00026301,2]
[341882820,1731265849857,-215.843465,0.00026301,7]
[341882821,1731265849867,-215.843465,0.00026301,7]
[341882822,1731265849876,-977.17,0.00026301,2]
[341882823,1731265849885,-500.0,0.00026301,2]
[341882824,1731265849895,-2504.22,0.00026301,2]
[341882825,1731265849904,-500.0,0.00026301,2]
[341882826,1731265849913,-955.57,0.00026301,2]
[341882827,1731265849923,-462.064509,0.00026301,7]
[341882828,1731265849932,-462.064509,0.00026301,7]
[341882829,1731265849942,-500.0,0.00026301,2]
[341882830,1731265849951,-553.76,0.00026301,2]
[341882831,1731265849961,-500.0,0.00026301,2]
[341882832,1731265849970,-631.47,0.00026301,2]
[341882833,1731265849980,-1219.26,0.00026301,2]
[341882834,1731265849989,-151.0,0.00026301,7]
[341882835,1731265849999,-3362.96,0.00026301,2]
[341882836,1731265850008,-1292.39,0.00026301,2]
[341882837,1731265850018,-500.0,0.00026301,2]
[341882838,1731265850027,-246.23009,0.00026301,7]
[341882839,1731265850039,-789.833325,0.00026301,7]
[341882840,1731265850048,-902.38,0.00026301,2]
[341882841,1731265850057,-151.0,0.00026301,7]
[341882842,1731265850066,-789.833325,0.00026301,7]
[341882843,1731265850075,-246.23009,0.00026301,7]
[341882844,1731265850084,-500.0,0.00026301,2]
[341882845,1731265850094,-1861.549979,0.00026301,7]
[341882846,1731265850104,-1861.549979,0.00026301,7]
[341882847,1731265850113,-261.106327,0.00026301,7]
[341882848,1731265850123,-261.106327,0.00026301,7]
[341882849,1731265850132,-500.0,0.00026301,2]
[341882850,1731265850142,-573.32,0.00026301,2]
[341882851,1731265850151,-4064.15,0.00026301,2]
[341882852,1731265850160,-151.0,0.00026301,7]
[341882853,1731265850169,-500.0,0.00026301,2]
[341882854,1731265850178,-500.0,0.00026301,2]
[341882855,1731265850187,-5741.44,0.00026301,2]
[341882856,1731265850197,-588.45,0.00026301,2]
[341882857,1731265850206,-543.419579,0.00026301,7]
[341882858,1731265850216,-853.21,0.00026301,2]
[341882859,1731265850226,-543.419579,0.00026301,7]
[341882860,1731265850235,-13269.49,0.00026301,2]
[341882861,1731265850344,-544.38,0.00026301,2]
[341882862,1731265850353,-637.25,0.00026301,2]
[341882863,1731265850363,-1288.67,0.00026301,2]
[341882864,1731265850372,-1693.724242,0.00026301,7]
[341882865,1731265850382,-170.182215,0.00026301,7]
[341882866,1731265850391,-1693.724242,0.00026301,7]
[341882867,1731265850400,-151.0,0.00026301,7]
[341882868,1731265850410,-921.43,0.00026301,2]
[341882869,1731265850420,-205.406495,0.00026301,7]
[341882870,1731265850429,-500.0,0.00026301,2]
[341882871,1731265850438,-258.350747,0.00026309,7]
[341882872,1731265850447,-258.350747,0.00026309,7]
[341882873,1731265850457,-151.0,0.00026309,7]
[341882874,1731265850466,-151.0,0.00026309,7]
[341882875,1731265850476,-151.0,0.00026309,7]
[341882876,1731265850485,-151.0,0.00026309,7]
[341882877,1731265850494,-151.0,0.00026309,7]
[341882878,1731265850504,-284.311864,0.00026309,7]
[341882879,1731265850514,-284.311864,0.00026309,7]
[341882880,1731265850523,-151.0,0.00026309,7]
[341882881,1731265850535,-505.214701,0.00026309,7]
[341882882,1731265850544,-505.214701,0.00026309,7]
[341882883,1731265850554,-151.0,0.00026309,7]
[341882884,1731265850563,-151.0,0.00026309,7]
[341882885,1731265850572,-212.654744,0.00026309,7]
[341882886,1731265850582,-212.654744,0.00026309,7]
[341882887,1731265850591,-151.0,0.00026309,7]
[341882888,1731265850601,-151.0,0.00026309,7]
[341882889,1731265850610,-805.035628,0.00026309,7]
[341882890,1731265850619,-805.035628,0.00026309,7]
[341882891,1731265850629,-151.0,0.00026309,7]
[341882892,1731265850638,-151.0,0.00026309,7]
[341882893,1731265850648,-151.0,0.00026309,7]
[341882894,1731265850658,-151.0,0.00026309,7]
[341882895,1731265850667,-151.0,0.00026309,7]
[341882896,1731265850677,-918.881644,0.00026309,7]
[341882897,1731265850686,-918.881644,0.00026309,7]
[341882898,1731265850695,-151.0,0.00026309,7]
[341882899,1731265850704,-208.865042,0.00026309,7]
[341882900,1731265850713,-208.865042,0.00026309,7]
[341882901,1731265850723,-151.0,0.00026309,7]
[341882902,1731265850736,-151.0,0.00026309,7]
[341882903,1731265850745,-216.659519,0.00026309,7]
[341882904,1731265850755,-216.659519,0.00026309,7]
[341882905,1731265850764,-2224.637435,0.00026309,7]
[341882906,1731265850775,-375.369755,0.00026309,7]
[341882907,1731265850788,-607.705642,0.00026309,7]
[341882908,1731265850798,-607.705642,0.00026309,7]
[341882909,1731265850809,-151.0,0.00026309,7]
[341882910,1731265850819,-151.0,0.00026309,7]
[341882911,1731265850829,-921.060595,0.00026309,7]
[341882912,1731265850838,-921.060595,0.00026309,7]
[341882913,1731265850848,-151.0,0.00026309,7]
[341882914,1731265850857,-151.0,0.00026309,7]
[341882915,1731265850866,-299.999008,0.00026309,7]
[341882916,1731265850875,-299.999008,0.00026309,7]
[341882917,1731265850885,-323.2189,0.00026309,7]
[341882918,1731265850894,-323.2189,0.00026309,7]
[341882919,1731265850903,-2458.636849,0.00026309,7]
[341882920,1731265850912,-2458.636849,0.00026309,7]
[341882921,1731265850921,-151.0,0.00026309,7]
[341882922,1731265850931,-249.989383,0.00026309,7]
[341882923,1731265850942,-249.989383,0.00026309,7]
[341882924,1731265850953,-182.777689,0.00026309,7]
[341882925,1731265850963,-305.14622,0.00026309,2]
[341882926,1731265850973,-305.14622,0.00026309,2]
[341882927,1731265850983,-151.0,0.00026309,7]
[341882928,1731265850992,-820.850837,0.00026309,7]
[341882929,1731265851002,-820.850837,0.00026309,7]
[341882930,1731265851011,-359.799512,0.00026309,7]
[341882931,1731265851022,-359.799512,0.00026309,7]
[341882932,1731265851035,-153.693762,0.00026309,7]
[341882933,1731265851044,-215.843465,0.00026309,7]
[341882934,1731265851053,-215.843465,0.00026309,7]
[341882935,1731265851063,-462.064509,0.00026309,7]
[341882936,1731265851072,-462.064509,0.00026309,7]
[341882937,1731265851081,-246.23009,0.00026309,7]
[341882938,1731265851091,-789.833325,0.00026309,7]
[341882939,1731265851100,-789.833325,0.00026309,7]
[341882940,1731265851109,-246.23009,0.00026309,7]
[341882941,1731265851118,-1861.549979,0.00026309,7]
[341882942,1731265851129,-1861.549979,0.00026309,7]
[341882943,1731265851138,-261.106327,0.00026309,7]
[341882944,1731265851148,-261.106327,0.00026309,7]
[341882945,1731265851157,-543.419579,0.00026309,7]
[341882946,1731265851168,-543.419579,0.00026309,7]
[341882947,1731265851177,-1693.724242,0.00026309,7]
[341882948,1731265851185,-1693.724242,0.00026309,7]
[341882949,1731265851194,-151.0,0.00026309,7]
[341882950,1731265851203,-500.0,0.00026373,2]
[341882951,1731265851212,-500.0,0.00026373,2]
[341882952,1731265851221,-500.0,0.00026373,2]
[341882953,1731265851230,-500.0,0.00026373,2]
[341882954,1731265851240,-500.0,0.00026373,2]
[341882955,1731265851248,-2407.62593099,0.00026379,2]
[341882956,1731265851257,-315.1790048,0.00026384,2]
[341882957,1731265851266,-454.63638182,0.00026429,4]
[341882958,1731265851276,-7458.94652043,0.0002649,2]
[341882959,1731265851288,-465.0622017,0.0002654,2]
[341882960,1731265851297,-153.93431464,0.00026548,2]
[341882961,1731265851307,-500.0,0.00026575,2]
[341882962,1731265851316,-500.0,0.00026575,2]
[341882963,1731265851325,-500.0,0.00026575,2]
[341882964,1731265851334,-500.0,0.00026575,2]
[341882965,1731265851343,-500.0,0.00026575,2]
[341882966,1731265851352,-575.41,0.00026575,2]
[341882967,1731265851361,-500.0,0.00026575,2]
[341882968,1731265851370,-500.0,0.00026575,2]
[341882969,1731265851379,-500.0,0.00026575,2]
[341882970,1731265851389,-500.0,0.00026575,2]
[341882971,1731265851398,-845.13,0.00026575,2]
[341882972,1731265851407,-500.0,0.00026575,2]
[341882973,1731265851416,-500.0,0.00026575,2]
[341882974,1731265851426,-500.0,0.00026575,2]